bitfinex/quotes_ETHUSD_20220201
["timestamp","ask_amount","ask_price","bid_price","bid_amount"]
[1643722824460,0.99999999,2792.4,2789.8,0.74883461]
[1643722824461,0.80707,2792.2,2790.7,0.431]
[1643722824665,0.80707,2792.2,2790.0,0.01208135]
[1643722824666,0.01257181,2791.3,2790.5,0.431]
[1643722824860,0.99999999,2791.5,2790.5,0.431]
[1643722824861,0.25,2791.2,2790.5,0.431]
[1643722825060,0.25,2791.2,2790.1,0.431]
[1643722825564,0.01223798,2791.3,2790.2,0.17908]
[1643722825763,2.0,2792.2,2790.3,0.431]
[1643722825963,0.01245185,2792.2,2790.4,0.13819996]
[1643722826163,0.26245185,2792.2,2790.5,0.61008]
[1643722826363,0.85063568,2792.0,2790.8,1.16237975]
[1643722826563,0.85063568,2792.0,2790.9,0.431]
[1643722826767,2.0,2791.9,2790.9,0.431]
[1643722826968,1.08429999,2791.9,2790.9,0.431]
[1643722827172,1.08429999,2791.9,2790.3,0.01]
[1643722827173,0.01239768,2791.5,2790.3,0.01]
[1643722827367,0.99999999,2791.1,2790.3,0.01]
[1643722827566,0.99999999,2791.1,2789.7,0.431]
[1643722827567,0.01205893,2790.8,2789.7,0.431]
[1643722828009,0.01205893,2790.8,2789.6,2.0]
[1643722828010,0.25,2790.7,2789.6,2.0]
[1643722828212,0.25,2790.7,2789.7,0.431]
[1643722828811,0.8655072,2790.2,2789.2,1.00575641]
[1643722829011,1.1655072,2790.2,2789.7,0.431]
[1643722829214,0.3,2790.2,2789.7,0.431]
[1643722829413,0.3,2790.2,2789.1,0.13819996]
[1643722829414,2.36810865,2790.1,2789.1,0.13819996]
[1643722829612,2.36810865,2790.1,2789.0,0.13819997]
[1643722829613,1.5,2790.0,2789.0,0.13819997]
[1643722829817,2.82713178,2789.9,2789.0,0.13819997]
[1643722830115,0.01285985,2789.7,2789.0,0.13819997]
[1643722830314,0.3,2789.8,2789.0,0.13819997]
[1643722830712,0.3,2789.8,2788.9,0.61008]
[1643722830713,0.00999,2790.0,2788.9,0.61008]
[1643722830911,0.01214627,2790.5,2788.9,0.61008]
[1643722831113,0.25,2790.4,2788.9,0.61008]
[1643722831318,0.75403869,2789.8,2788.9,0.61008]
[1643722831514,1.00403869,2789.8,2788.9,0.431]
[1643722831756,0.01214627,2790.5,2788.9,0.431]
[1643722831757,0.39681775,2790.5,2789.0,0.35569963]
[1643722831961,0.39681775,2790.5,2789.1,0.431]
[1643722831962,0.99681775,2790.5,2789.1,0.431]
[1643722832153,0.99681775,2790.5,2789.2,0.431]
[1643722832359,0.99681775,2790.5,2789.3,0.431]
[1643722832757,0.90020416,2790.1,2789.3,0.431]
[1643722833054,1.75020416,2790.1,2789.3,0.431]
[1643722833255,1.75020416,2790.1,2789.3,0.406]
[1643722833454,0.01214627,2790.5,2789.3,0.406]
[1643722833656,0.00999,2790.6,2789.3,0.58508]
[1643722833856,0.01210326,2791.1,2789.7,0.36097487]
[1643722834058,0.01210326,2791.1,2789.7,0.431]
[1643722834059,0.25,2790.7,2789.7,0.431]
[1643722834457,0.72110404,2790.2,2789.7,0.431]
[1643722834655,0.25,2790.7,2789.7,0.431]
[1643722834861,0.01237546,2790.5,2789.3,0.431]
[1643722835059,0.40872124,2790.4,2789.1,0.00088482]
[1643722835257,0.70872124,2790.4,2789.1,0.00088482]
[1643722835504,0.70872124,2790.4,2789.1,1.62594482]
[1643722835709,0.99999999,2790.3,2789.1,1.62594482]
[1643722835910,1.00872124,2790.4,2789.1,2.47279482]
[1643722835911,0.76399661,2789.5,2789.1,2.47279482]
[1643722836110,0.01237546,2790.5,2789.1,2.47279482]
[1643722836314,0.25999,2790.7,2789.2,2.431]
[1643722836510,0.25999,2790.7,2789.3,1.62494]
[1643722836708,0.09722292,2791.3,2789.4,2.61008]
[1643722836709,0.01292292,2791.3,2789.4,2.61008]
[1643722836911,0.01292292,2791.3,2789.5,1.62482]
[1643722837110,0.92475191,2790.6,2789.6,0.431]
[1643722837310,0.01292292,2791.3,2789.7,1.62471]
[1643722837512,0.01292292,2791.3,2789.9,0.00088354]
[1643722837710,0.01292292,2791.3,2790.0,0.431]
[1643722837911,0.01292292,2791.3,2790.1,1.62447]
[1643722838111,0.01292292,2791.3,2790.1,2.05547]
[1643722838316,0.88768079,2791.0,2790.1,2.05547]
[1643722838914,0.99999999,2790.7,2790.1,1.62447]
[1643722839113,0.31269358,2790.7,2790.1,1.62447]
[1643722839357,0.3,2790.7,2790.1,1.62447]
[1643722839554,0.25,2790.9,2790.1,1.62447]
[1643722839555,0.55,2790.9,2790.1,1.62447]
[1643722839752,0.38044608,2790.5,2790.1,1.62447]
[1643722839952,0.66951855,2790.3,2790.1,1.62447]
[1643722840156,0.55,2790.9,2790.1,1.62447]
[1643722840759,0.85,2790.9,2790.1,1.62447]
[1643722840959,0.01287054,2790.6,2789.9,0.00088354]
[1643722841158,1.01287053,2790.6,2789.9,0.00088354]
[1643722841360,0.32706385,2790.0,2789.9,0.00088354]
[1643722841563,0.01287054,2790.6,2789.9,0.00088354]
[1643722841759,1.01287053,2790.6,2789.9,0.00088354]
[1643722841958,0.99999999,2790.3,2789.9,8.354e-05]
[1643722842160,0.99999999,2790.3,2788.7,0.441]
[1643722842161,0.0008,2789.8,2788.7,0.441]
[1643722842360,0.25,2790.1,2788.7,0.01]
[1643722842560,0.55,2790.1,2788.4,2.23347684]
[1643722843006,0.85598072,2789.6,2788.5,1.28644468]
[1643722843208,0.55,2790.1,2788.5,0.61008]
[1643722843408,0.84931,2789.9,2788.6,2.0]
[1643722843609,0.84931,2789.9,2788.4,0.13819997]
[1643722843610,0.3,2789.8,2788.7,0.61008]
[1643722843809,0.3,2789.8,2788.8,0.431]
[1643722844212,1.11970626,2789.5,2788.8,0.431]
[1643722844413,0.84931,2789.4,2788.8,0.431]
[1643722844810,0.84931,2789.4,2788.3,0.32991487]
[1643722844811,0.33475912,2789.1,2788.3,0.01263491]
[1643722845011,0.33475912,2789.1,2787.8,0.01]
[1643722845211,0.25,2788.9,2787.8,0.01]
[1643722845413,1.20145376,2788.9,2787.7,0.95803779]
[1643722845611,1.20145376,2788.9,2787.7,0.17908]
[1643722845812,1.50145376,2788.9,2787.7,0.17908]
[1643722846217,1.50145376,2788.9,2787.5,0.61008]
[1643722846412,1.50145376,2788.9,2787.5,0.17908]
[1643722846859,0.81993513,2788.2,2787.5,0.17908]
[1643722847059,1.11993513,2788.2,2787.5,0.17908]
[1643722847660,0.3,2788.2,2787.5,0.17908]
[1643722848069,0.25,2788.2,2787.5,0.17908]
[1643722848265,0.25,2788.2,2787.3,0.17908]
[1643722848564,0.25,2788.2,2786.3,2.30832979]
[1643722848565,0.25,2788.2,2786.7,0.17908]
[1643722848764,0.87208232,2787.9,2786.7,1.04981305]
[1643722848966,0.25,2788.2,2786.8,2.14816326]
[1643722849164,0.25,2788.2,2786.8,2.16095674]
[1643722849466,1.14968182,2789.1,2786.8,2.16095674]
[1643722849467,0.00284182,2788.9,2787.0,21.01]
[1643722849664,1.92063182,2788.9,2787.4,0.01294396]
[1643722849863,2.56674733,2788.9,2787.5,21.62008]
[1643722850064,1.91779,2788.8,2787.6,2.0]
[1643722850263,1.91779,2788.8,2787.7,0.61008]
[1643722850727,2.21779,2788.8,2787.7,1.61008]
[1643722850924,1.91779,2788.8,2787.7,0.61008]
[1643722851126,1.91779,2788.8,2787.7,0.431]
[1643722851527,2.25078915,2788.8,2787.7,0.431]
[1643722851926,1.91779,2788.8,2787.7,0.431]
[1643722852126,1.91779,2788.8,2787.8,0.17908]
[1643722852328,1.91779,2788.8,2787.9,0.431]
[1643722852528,1.91779,2788.8,2788.2,21.01]
[1643722852529,0.84931,2788.8,2788.2,21.01]
[1643722852727,0.84931,2788.8,2788.4,0.01200813]
[1643722852728,1.14931,2788.8,2788.4,0.01200813]
[1643722852936,0.84931,2788.8,2788.5,0.431]
[1643722853235,0.84931,2788.8,2788.7,0.17908]
[1643722853428,0.84931,2788.8,2787.6,1.00082959]
[1643722853429,1.91779,2788.8,2787.6,1.00082959]
[1643722853629,0.85898302,2788.7,2787.7,0.431]
[1643722853830,0.85898302,2788.7,2787.7,0.335239]
[1643722854028,2.01287347,2789.2,2787.7,0.335239]
[1643722854254,0.01287347,2789.2,2787.7,0.70558713]
[1643722854458,0.86218347,2789.2,2787.8,21.01]
[1643722854658,0.86218347,2789.2,2787.9,0.431]
[1643722854858,0.86218347,2789.2,2788.0,21.01]
[1643722854859,1.91779,2789.2,2788.0,21.01]
[1643722855060,1.91779,2789.2,2788.1,1.11920436]
[1643722855262,1.91779,2789.2,2788.1,2.11920436]
[1643722855663,3.54679,2789.2,2788.1,2.11920436]
[1643722856062,3.54679,2789.2,2788.1,1.431]
[1643722856063,3.86890976,2789.2,2788.1,1.431]
[1643722856262,3.86890976,2789.2,2788.1,0.431]
[1643722856464,3.85682055,2789.2,2788.1,0.431]
[1643722856663,3.53470079,2789.2,2788.1,0.431]
[1643722856863,3.53470079,2789.2,2788.2,2.01217527]
[1643722857063,3.53470079,2789.2,2788.3,0.431]
[1643722857262,3.53470079,2789.2,2788.4,21.01401394]
[1643722857564,3.53294861,2789.2,2788.5,0.431]
[1643722857762,3.53294861,2789.2,2788.5,1.431]
[1643722858040,3.53294861,2789.2,2788.5,1.8441944]
[1643722860934,1.51330166,2790.7,2789.9,0.431]
[1643722861132,1.76330166,2790.6,2789.5,0.431]
[1643722861332,0.01202956,2790.4,2789.5,0.431]
[1643722861532,0.33986492,2789.8,2789.5,0.431]
[1643722862363,1.13605394,2790.0,2789.5,0.431]
[1643722862660,1.51331458,2789.9,2789.5,0.431]
[1643722863261,1.51331458,2789.9,2788.9,0.431]
[1643722863262,0.25,2789.8,2788.9,0.431]
[1643722863465,0.25,2789.8,2788.7,0.28639993]
[1643722863466,0.37571879,2788.8,2788.7,0.28639993]
[1643722863660,2.48559322,2789.9,2788.7,0.27639993]
[1643722863661,0.65249249,2789.9,2788.7,0.27639993]
[1643722863866,0.75624652,2789.5,2788.7,0.70739993]
[1643722864061,1.51348133,2789.4,2788.7,0.70739993]
[1643722864261,1.81348133,2789.4,2788.7,0.70739993]
[1643722864465,1.51348133,2789.3,2788.7,0.70739993]
[1643722864664,0.33769803,2789.2,2788.7,0.70739993]
[1643722864865,1.51348133,2789.1,2788.7,0.70739993]
[1643722865366,1.81348133,2789.1,2788.7,0.70739993]
[1643722865629,1.81348133,2789.1,2787.9,1.26235302]
[1643722865630,1.51363526,2789.0,2787.9,1.26235302]
[1643722865830,1.51363526,2789.0,2787.8,0.01222645]
[1643722865831,0.55,2788.9,2788.0,0.431]
[1643722866031,0.55,2788.9,2787.7,0.01]
[1643722866032,1.51363526,2788.8,2787.7,0.01]
[1643722866227,1.51363526,2788.8,2787.4,2.0]
[1643722866430,1.51363526,2788.8,2787.6,21.01]
[1643722866431,0.4010504,2788.3,2787.6,21.01]
[1643722866727,1.20929564,2788.5,2787.7,0.431]
[1643722867224,0.01272856,2789.1,2787.7,0.431]
[1643722867426,0.01272856,2789.1,2788.8,2.877e-05]
[1643722867624,0.65249249,2788.9,2788.8,2.877e-05]
[1643722867925,0.65249249,2788.9,2787.3,0.431]
[1643722867926,0.42475814,2787.7,2787.3,0.431]
[1643722869130,0.70707418,2787.2,2786.6,0.431]
[1643722869568,0.3,2788.0,2786.6,0.431]
[1643722869769,1.51447721,2787.9,2786.7,2.20029178]
[1643722869971,0.01998,2788.5,2786.8,0.431]
[1643722870176,1.51428921,2788.4,2786.9,2.0]
[1643722870370,0.34069831,2787.8,2787.0,21.441]
[1643722870570,0.81868437,2788.1,2787.0,0.431]
[1643722870780,0.81868437,2788.1,2787.0,2.431]
[1643722870971,0.81868437,2788.1,2787.0,2.5441944]
[1643722871176,0.81868437,2788.1,2787.0,24.5541944]
[1643722871375,0.01998,2788.7,2787.0,24.8541944]
[1643722871579,0.01998,2788.7,2787.4,21.022052]
[1643722871773,0.01998,2788.7,2787.5,3.431]
[1643722871974,0.00284358,2789.2,2787.6,21.01]
[1643722872173,0.25284358,2789.2,2787.7,0.431]
[1643722872372,0.89519593,2788.4,2787.7,3.431]
[1643722872576,0.25,2789.2,2787.7,0.431]
[1643722872773,0.41159828,2788.9,2787.8,1.0]
[1643722873006,1.5140581,2788.8,2787.9,0.431]
[1643722873208,0.3,2788.8,2788.0,0.431]
[1643722873408,0.3,2788.8,2788.1,0.431]
[1643722873610,0.41159828,2788.9,2787.8,1.0]
[1643722873611,0.70215195,2788.4,2788.2,0.431]
[1643722873811,1.00215195,2788.4,2788.0,0.431]
[1643722874213,0.25,2789.2,2788.0,0.431]
[1643722874412,3.57302358,2789.6,2788.1,2.37466902]
[1643722874612,0.00284358,2789.6,2788.1,2.37466902]
[1643722874813,0.00284358,2789.6,2788.2,0.431]
[1643722875023,0.0124939,2789.7,2788.2,0.431]
[1643722875024,0.0124939,2789.7,2788.3,2.58355591]
[1643722875218,0.01213814,2788.9,2788.3,0.431]
[1643722875420,0.01213814,2788.9,2788.4,1.0]
[1643722875617,0.01213814,2788.9,2788.4,1.431]
[1643722875818,0.26213814,2788.9,2788.4,0.431]
[1643722876421,0.6871018,2788.6,2787.7,2.27792264]
[1643722876618,0.3,2789.1,2788.0,0.431]
[1643722876861,0.01248501,2789.4,2788.1,2.07983522]
[1643722877063,0.00284358,2789.7,2788.2,0.70739993]
[1643722877266,0.01998,2789.9,2788.3,2.88244197]
[1643722877469,0.41552936,2789.8,2788.4,0.431]
[1643722877762,0.41552936,2789.8,2788.5,2.5]
[1643722877763,0.82674201,2789.6,2788.5,2.5]
[1643722878062,0.82674201,2789.6,2788.6,0.431]
[1643722878263,1.12674201,2789.6,2788.7,2.07269432]
[1643722878463,1.12674201,2789.6,2788.7,2.06387665]
[1643722878663,1.12674201,2789.6,2788.8,0.431]
[1643722878863,1.12674201,2789.6,2788.9,0.431]
[1643722879066,1.12674201,2789.6,2789.0,0.431]
[1643722879262,1.12674201,2789.6,2789.1,0.431]
[1643722879466,0.01234663,2789.9,2789.2,2.05564325]
[1643722879665,0.01234663,2789.9,2789.1,0.431]
[1643722880725,0.01234663,2789.9,2789.2,2.07469452]
[1643722880926,0.01234663,2789.9,2789.3,0.431]
[1643722881125,0.25,2790.1,2789.4,0.431]
[1643722882025,0.72744528,2789.8,2789.4,0.431]
[1643722882528,1.02744528,2789.8,2789.4,0.431]
[1643722882935,0.3,2789.8,2789.4,0.431]
[1643722883126,0.01275411,2790.6,2789.4,0.431]
[1643722883327,0.32127204,2790.2,2789.4,0.431]
[1643722883527,0.25,2790.1,2789.4,0.431]
[1643722884363,0.73466109,2789.7,2789.4,0.431]
[1643722884760,1.03466109,2789.7,2789.4,0.431]
[1643722884960,1.0286604,2789.7,2789.4,0.431]
[1643722885364,1.0286604,2789.7,2788.7,0.431]
[1643722885864,0.25,2789.5,2788.7,0.431]
[1643722886868,0.91943026,2789.3,2788.7,0.431]
[1643722887268,1.21943026,2789.3,2788.7,0.431]
[1643722888313,0.40179648,2789.2,2788.7,0.431]
[1643722888513,1.21943026,2789.3,2788.7,0.431]
[1643722890315,0.35462576,2789.2,2787.9,1.02223883]
[1643722890514,1.21943026,2789.3,2788.3,0.431]
[1643722892061,0.84069683,2788.8,2788.3,0.431]
[1643722892257,0.84069683,2788.8,2787.9,1.0]
[1643722892258,1.39069683,2788.8,2787.9,1.0]
[1643722892660,1.39069683,2788.8,2787.7,2.22342]
[1643722893059,0.4368582,2788.7,2787.7,2.22342]
[1643722893260,1.39069683,2788.8,2787.7,2.22342]
[1643722893261,0.3,2788.8,2787.7,2.22342]
[1643722893461,0.3,2788.8,2787.8,0.1131944]
[1643722893661,0.3,2788.8,2787.9,0.431]
[1643722893861,0.03238706,2789.4,2787.9,0.431]
[1643722893862,0.25,2788.9,2787.9,0.431]
[1643722894262,0.77443602,2788.8,2787.9,0.431]
[1643722895919,1.07443602,2788.8,2787.9,0.431]
[1643722898520,0.01240706,2789.4,2788.1,0.8962]
[1643722898818,0.25,2789.5,2788.2,0.431]
[1643722899464,0.25,2789.5,2788.4,0.01277277]
[1643722899661,5.14084358,2790.2,2788.6,0.78461756]
[1643722899662,0.01998,2790.1,2788.6,0.78461756]
[1643722899868,0.01998,2790.1,2788.7,0.431]
[1643722900162,3.83614358,2790.3,2788.7,0.431]
[1643722900163,0.00284358,2790.3,2788.7,1.3048944]
[1643722900367,1.51347886,2790.4,2788.8,21.02060065]
[1643722900566,1.51347886,2790.4,2789.0,21.01]
[1643722900765,1.36031287,2790.1,2789.1,0.431]
[1643722900966,1.36031287,2790.1,2789.1,1.431]
[1643722901165,0.43264534,2790.1,2789.1,1.431]
[1643722901366,0.43264534,2790.1,2789.1,0.431]
[1643722901766,5.0071,2790.6,2789.1,0.431]
[1643722901966,1.51345875,2790.5,2789.1,3.13717]
[1643722902172,3.5539,2790.8,2789.8,1.71757822]
[1643722902481,1.20118,2790.9,2789.9,23.44754408]
[1643722902482,0.01998,2790.9,2789.9,23.44754408]
[1643722902682,4.13089249,2791.6,2789.9,23.44754408]
[1643722902683,1.948964,2792.4,2790.6,1.00957066]
[1643722902868,6.8353013,2793.3,2790.6,1.00957066]
[1643722902869,0.67515546,2792.7,2792.2,0.42872155]
[1643722903118,0.01,2793.3,2792.3,0.43587838]
[1643722903119,0.00284438,2793.0,2792.3,0.43587838]
[1643722903317,0.00284438,2793.0,2792.9,0.795629]
[1643722903621,0.026244,2793.4,2793.0,3.15]
[1643722903622,0.00999941,2793.3,2793.0,3.15]
[1643722903818,0.00999941,2793.3,2793.2,0.44184051]
[1643722904017,0.00999941,2793.3,2793.2,0.431]
[1643722904428,2.46992944,2794.0,2793.2,0.431]
[1643722904624,1.51175294,2793.9,2793.2,0.431]
[1643722904828,2.0,2793.8,2793.2,0.431]
[1643722905031,2.0,2793.8,2792.6,0.02238214]
[1643722905032,1.52434571,2793.7,2792.6,0.01]
[1643722905225,1.46175294,2793.6,2792.6,0.441]
[1643722905426,0.3,2794.0,2792.6,1.34820958]
[1643722905427,0.05,2794.0,2792.6,1.34820958]
[1643722905624,0.05,2794.0,2792.6,2.3947208]
[1643722905828,0.3,2794.0,2792.6,2.3947208]
[1643722906026,0.3,2794.0,2792.6,2.38240122]
[1643722906027,2.0,2793.9,2792.6,2.38240122]
[1643722906427,0.67423771,2793.5,2792.6,1.32589]
[1643722906759,0.67423771,2793.5,2792.2,0.89501]
[1643722906760,0.25,2793.3,2792.2,0.89501]
[1643722906962,0.25,2793.3,2792.0,0.27639993]
[1643722906963,0.25,2793.3,2792.0,0.431]
[1643722907565,0.80533273,2793.0,2792.0,0.431]
[1643722907762,1.10533273,2793.0,2792.0,0.431]
[1643722908362,1.40533273,2793.0,2792.0,0.431]
[1643722908564,1.10533273,2793.0,2792.0,0.431]
[1643722908763,0.3,2793.0,2792.1,2.09094457]
[1643722908965,0.3,2793.0,2792.2,0.431]
[1643722909166,0.895,2793.5,2792.3,2.0]
[1643722909471,0.05,2794.0,2793.8,0.40056692]
[1643722909667,0.05,2794.0,2793.9,0.431]
[1643722909866,0.05,2794.0,2793.9,1.15029405]
[1643722910069,0.05,2794.0,2793.9,0.431]
[1643722910720,0.05,2794.0,2793.5,0.01]
[1643722911121,0.05,2794.0,2793.2,0.431]
[1643722911521,0.05,2794.0,2793.3,21.01]
[1643722911720,0.05,2794.0,2793.4,2.431]
[1643722911922,0.05,2794.0,2793.7,0.37021546]
[1643722912120,0.05,2794.0,2793.8,0.431]
[1643722912524,0.0535796,2794.0,2793.8,0.431]
[1643722913322,0.0535796,2794.0,2793.8,0.43575593]
[1643722913523,0.0535796,2794.0,2793.8,0.431]
[1643722915767,0.0535796,2794.0,2793.9,23.07015325]
[1643722915967,0.0535796,2794.0,2793.9,0.431]
[1643722916571,0.015,2795.3,2793.9,5.131]
[1643722916771,0.01245148,2795.4,2794.0,0.13819997]
[1643722916772,0.015,2795.4,2794.0,0.13819997]
[1643722916972,0.015,2795.7,2794.2,1.78842]
[1643722917168,0.015,2795.7,2794.3,0.431]
[1643722917169,0.25,2795.7,2794.3,0.431]
[1643722917368,0.015,2795.8,2794.7,0.89415]
[1643722917568,0.015,2795.8,2794.8,0.431]
[1643722917569,0.91503633,2795.6,2794.8,0.431]
[1643722918012,0.015,2796.1,2794.8,0.431]
[1643722918209,0.25,2796.0,2794.8,0.431]
[1643722919115,0.265,2796.1,2795.2,0.89379]
[1643722919313,0.315,2796.1,2795.3,0.4353454]
[1643722919513,0.015,2796.1,2795.3,0.4353454]
[1643722919716,0.015,2796.1,2795.4,2.07386583]
[1643722919911,0.74654085,2796.1,2795.5,0.431]
[1643722920112,0.74654085,2796.1,2795.6,0.431]
[1643722920313,0.74654085,2796.1,2795.4,0.431]
[1643722920817,0.015,2796.1,2795.4,0.431]
[1643722921215,0.315,2796.1,2795.4,0.431]
[1643722921867,0.80765745,2795.6,2795.4,0.431]
[1643722922067,1.10765745,2795.6,2795.4,0.431]
[1643722922270,0.015,2795.9,2795.4,0.431]
[1643722922469,0.015,2796.1,2795.4,0.431]
[1643722923171,0.015,2796.1,2795.3,1.0]
[1643722923366,0.015,2796.1,2795.4,0.431]
[1643722923567,0.015,2796.1,2795.5,0.431]
[1643722923769,0.015,2796.1,2795.6,0.431]
[1643722923973,0.015,2796.1,2795.7,0.431]
[1643722924172,0.315,2796.1,2795.8,0.431]
[1643722924470,0.015,2796.1,2795.8,0.431]
[1643722924671,0.42238231,2796.0,2795.8,0.431]
[1643722925270,0.75329653,2795.9,2795.0,1.78786]
[1643722925538,0.015,2795.9,2795.3,0.89392]
[1643722925736,1.1000085,2796.2,2795.5,3.85]
[1643722925936,1.1000085,2796.2,2795.6,2.431]
[1643722926141,1.1000085,2796.2,2795.7,1.79648181]
[1643722926335,1.1000085,2796.2,2795.8,0.431]
[1643722926537,1.1000085,2796.2,2795.8,2.431]
[1643722926836,1.1000085,2796.2,2795.9,0.89367]
[1643722927138,2.2589695,2796.9,2796.2,6.00609413]
[1643722927434,2.2589695,2796.9,2796.3,0.431]
[1643722927933,2.2589695,2796.9,2796.3,4.01893917]
[1643722928134,0.01,2797.6,2796.4,6.65]
[1643722928341,0.01,2797.9,2796.8,0.01253816]
[1643722928537,0.01,2797.9,2796.9,0.431]
[1643722928734,0.01,2797.9,2796.9,4.01893917]
[1643722929037,0.01,2797.9,2797.2,0.04726193]
[1643722929275,0.01,2797.9,2797.3,0.431]
[1643722929481,0.01,2797.9,2797.3,0.43938162]
[1643722929680,0.26,2797.9,2797.3,0.43938162]
[1643722929886,0.26,2797.9,2796.9,1.27235302]
[1643722930283,0.26,2797.9,2796.9,1.26235302]
[1643722930485,0.69528645,2797.1,2796.7,0.431]
[1643722930684,0.26,2797.9,2796.7,0.431]
[1643722930891,0.01,2797.9,2796.8,21.01]
[1643722931089,0.01,2797.9,2796.9,0.431]
[1643722931288,0.64228145,2797.9,2796.9,21.441]
[1643722931486,0.64228145,2797.9,2796.9,0.431]
[1643722931685,0.70415238,2797.3,2797.0,1.0]
[1643722931889,2.0,2797.2,2797.0,0.431]
[1643722932097,0.70415238,2797.3,2796.3,0.441]
[1643722932287,0.70415238,2797.3,2796.0,0.13819996]
[1643722932288,1.00415238,2797.3,2796.0,0.13819996]
[1643722932489,1.30415238,2797.3,2796.0,0.13819996]
[1643722932892,1.30415238,2797.3,2796.2,0.431]
[1643722932893,0.77886457,2796.8,2796.2,0.431]
[1643722933134,1.32886457,2796.8,2796.2,0.431]
[1643722933340,0.6,2797.3,2796.2,0.431]
[1643722933341,0.64261947,2797.3,2796.2,0.431]
[1643722933541,0.25,2797.7,2796.5,0.89349]
[1643722933736,0.25,2797.7,2796.6,0.431]
[1643722934233,0.25,2797.7,2797.0,0.01250802]
[1643722934234,0.89832244,2797.2,2797.0,0.01250802]
[1643722934440,0.25,2797.7,2797.1,0.431]
[1643722934441,0.24793913,2797.7,2797.1,0.431]
[1643722934637,3.01,2798.0,2797.1,1.4126]
[1643722934836,0.25,2797.9,2797.1,1.4126]
[1643722935639,3.01,2798.0,2797.1,1.4126]
[1643722935640,3.01,2798.0,2797.2,21.01]
[1643722935840,3.01,2798.0,2797.3,0.431]
[1643722936040,3.01,2798.0,2797.3,1.431]
[1643722936236,3.01,2798.0,2797.4,21.01]
[1643722936439,5.74714235,2799.1,2797.1,1.4943]
[1643722936440,0.01284235,2799.1,2797.7,21.01]
[1643722936643,0.01284235,2799.1,2798.9,0.01291824]
[1643722936644,0.00157613,2799.1,2798.9,0.01291824]
[1643722936892,32.976845,2800.0,2799.3,0.37149747]
[1643722937087,1.3709085,2799.6,2799.3,0.37149747]
[1643722937283,0.1792,2799.4,2798.1,0.01555553]
[1643722937488,0.43248903,2799.4,2798.1,2.01]
[1643722937686,0.04092649,2799.3,2798.2,0.43473098]
[1643722937884,0.04092649,2799.3,2798.0,0.44308474]
[1643722938084,0.04035807,2799.2,2798.1,1.0]
[1643722938284,0.04035807,2799.2,2798.4,0.8831161]
[1643722938485,0.04149492,2799.4,2798.5,0.431]
[1643722938887,0.39335325,2799.3,2798.5,0.431]
[1643722939284,0.04035807,2799.2,2798.5,0.431]
[1643722939684,0.70951987,2798.9,2798.5,0.431]
[1643722940092,0.25,2798.7,2797.9,0.431]
[1643722940389,0.41203741,2798.1,2797.5,0.431]
[1643722940623,0.25,2798.7,2797.5,0.431]
[1643722941024,0.90570942,2798.2,2797.6,21.01]
[1643722941430,1.27443728,2798.2,2797.6,21.01]
[1643722941633,0.90570942,2798.2,2797.6,21.01]
[1643722941830,0.90570942,2798.2,2797.2,0.89324]
[1643722941831,1.20570942,2798.2,2797.2,0.431]
[1643722942031,1.20570942,2798.2,2797.2,1.27555]
[1643722942431,1.20570942,2798.2,2797.3,21.01]
[1643722942935,1.45570942,2798.2,2796.9,0.431]
[1643722943134,1.45570942,2798.2,2796.5,1.27235302]
[1643722943135,2.0,2798.1,2796.5,1.27235302]
[1643722943334,0.3,2797.9,2796.5,0.01]
[1643722943548,0.3,2797.9,2796.0,0.1510476]
[1643722943549,0.39916349,2797.1,2796.0,0.1510476]
[1643722943739,0.25,2797.6,2796.0,0.1510476]
[1643722943932,0.99999999,2797.4,2796.0,0.01284764]
[1643722944134,0.3,2797.2,2795.5,2.431]
[1643722944378,0.25,2797.0,2795.6,2.0]
[1643722944579,0.01900043,2797.9,2796.0,0.01287316]
[1643722944580,0.00659391,2797.9,2796.0,0.01287316]
[1643722944779,0.35004578,2797.8,2796.6,0.01247977]
[1643722944979,0.35004578,2797.8,2796.7,0.431]
[1643722945181,0.25,2797.7,2796.7,0.431]
[1643722945379,0.55,2797.7,2796.7,0.431]
[1643722945580,0.3,2797.6,2796.7,0.431]
[1643722945777,0.6,2797.6,2796.7,0.431]
[1643722945979,0.91572354,2797.4,2796.7,0.431]
[1643722946383,2.3644,2798.0,2796.7,0.431]
[1643722946384,0.25,2797.9,2796.7,0.431]
[1643722946579,0.25,2798.4,2797.2,0.01232104]
[1643722946778,0.25,2798.4,2797.3,0.431]
[1643722947379,0.73711795,2797.8,2797.3,0.431]
[1643722947779,0.73711795,2797.8,2796.9,1.0]
[1643722947780,0.44350681,2797.4,2796.9,1.0]
[1643722948029,0.44350681,2797.4,2796.9,1.431]
[1643722948229,0.98711795,2797.8,2796.9,0.431]
[1643722949237,0.98711795,2797.8,2796.7,0.01206623]
[1643722949238,0.39974459,2797.7,2796.5,0.13819996]
[1643722949537,0.98711795,2797.8,2796.4,0.01]
[1643722949736,0.98711795,2797.8,2796.1,1.15126916]
[1643722949737,0.94481845,2797.2,2796.1,1.15126916]
[1643722949937,0.94481845,2797.2,2796.1,0.431]
[1643722950238,0.25,2797.0,2796.1,0.431]
[1643722950639,0.25,2797.0,2796.0,0.01292984]
[1643722950938,0.25,2797.0,2796.1,0.94850511]
[1643722951138,0.25,2797.7,2796.1,1.37950511]
[1643722951543,0.68466153,2797.7,2796.2,21.33203004]
[1643722951782,0.68466153,2797.7,2796.3,0.431]